bitfinex/quotes_ETHUSD_20220731
["timestamp","ask_amount","ask_price","bid_price","bid_amount"]
[1659262898109,0.05,1704.7,1704.0,3.4406]
[1659262898475,2.8703,1704.8,1704.0,3.4406]
[1659262898476,2.9203,1704.8,1704.0,3.4406]
[1659262898680,0.34471435,1704.7,1704.0,3.4406]
[1659262898906,0.34471435,1704.7,1704.0,3.44536164]
[1659262899291,0.34471435,1704.7,1704.0,0.77439916]
[1659262899491,0.34471435,1704.7,1704.0,0.00476164]
[1659262899694,6.52971435,1704.7,1704.0,0.00476164]
[1659262900425,6.52971435,1704.7,1703.9,0.05]
[1659262900426,6.485,1704.5,1703.9,0.05]
[1659262900641,6.785,1704.5,1703.7,11.9271]
[1659262900856,6.785,1704.5,1703.9,12.64820774]
[1659262900857,6.835,1704.5,1703.9,12.64820774]
[1659262900998,6.785,1704.5,1703.9,12.64820774]
[1659262901199,16.212,1704.4,1703.7,0.05]
[1659262901402,6.185,1704.2,1703.6,0.05]
[1659262901642,6.185,1704.2,1703.4,0.05]
[1659262901844,9.985,1704.2,1703.3,9.6596]
[1659262902015,10.035,1704.2,1703.3,9.2188]
[1659262902437,13.562,1704.2,1703.3,9.2188]
[1659262902601,13.562,1704.2,1703.3,0.05]
[1659262902602,3.527,1703.9,1703.3,0.05]
[1659262902804,3.527,1703.9,1702.6,3.2585]
[1659262902805,6.185,1703.6,1703.1,0.05]
[1659262903006,6.185,1703.5,1702.9,0.05]
[1659262903242,6.485,1703.5,1702.7,6.2746]
[1659262903412,3.0,1703.4,1702.7,6.2246]
[1659262903620,9.82971435,1703.4,1702.6,2.9942]
[1659262903822,9.87971435,1703.4,1702.5,0.05]
[1659262904402,9.87971435,1703.4,1702.6,0.4409]
[1659262904821,13.37971435,1703.4,1702.6,0.4409]
[1659262905019,9.87971435,1703.4,1702.6,0.4409]
[1659262905236,9.87971435,1703.4,1702.5,0.491]
[1659262905611,13.37971435,1703.4,1702.5,0.491]
[1659262906044,9.87971435,1703.4,1702.5,0.491]
[1659262906245,2.89804672,1703.3,1702.5,0.491]
[1659262906405,3.19804672,1703.3,1702.6,0.01794552]
[1659262906606,2.89804672,1703.2,1702.6,0.01794552]
[1659262906844,3.19804672,1703.2,1702.6,0.01794552]
[1659262907019,2.89804672,1703.1,1702.6,0.01794552]
[1659262907221,3.49804672,1703.1,1702.6,0.01794552]
[1659262908004,3.19804672,1703.1,1702.6,0.01794552]
[1659262910449,2.89804672,1703.1,1702.6,0.01794552]
[1659262912111,0.05,1703.3,1702.9,14.09916421]
[1659262912362,2.89804672,1703.3,1702.9,14.09916421]
[1659262912724,2.89804672,1703.3,1702.8,0.06549607]
[1659262913421,3.24276107,1703.3,1702.8,0.06549607]
[1659262913619,2.89804672,1703.2,1702.8,0.06549607]
[1659262914247,2.89804672,1703.2,1702.8,10.74555218]
[1659262914453,0.05,1703.4,1703.0,0.2]
[1659262914666,0.05,1703.7,1703.1,0.50628453]
[1659262914824,0.02404035,1703.2,1703.1,3.36871722]
[1659262916284,0.65004035,1703.2,1703.1,3.36871722]
[1659262916590,0.02404035,1703.2,1703.1,3.36871722]
[1659262917263,1.23904035,1703.2,1702.7,3.05]
[1659262917449,1.23904035,1703.2,1702.6,0.4409]
[1659262917450,3.5,1703.1,1702.6,0.4409]
[1659262917653,2.89804672,1703.0,1702.4,6.5284]
[1659262917985,3.49804672,1703.0,1702.4,0.441]
[1659262918189,2.89804672,1702.9,1702.3,0.441]
[1659262918545,2.89804672,1702.9,1702.2,0.441]
[1659262918753,0.65,1703.0,1702.3,2.89804672]
[1659262918952,0.35,1703.1,1702.4,0.441]
[1659262919177,2.89804672,1703.1,1702.4,0.441]
[1659262919381,2.89804672,1703.1,1702.9,0.2]
[1659262919887,2.89804672,1703.1,1702.7,15.82235736]
[1659262919888,2.89804672,1703.1,1702.7,15.62235736]
[1659262920292,2.89484526,1703.1,1702.8,0.2]
[1659262921401,0.02404035,1703.2,1702.8,0.2]
[1659262921585,0.02404035,1703.2,1702.8,0.6409]
[1659262921953,0.02404035,1703.2,1702.8,0.2]
[1659262922153,0.02404035,1703.2,1703.1,0.2]
[1659262922755,0.02404035,1703.2,1702.7,15.67235736]
[1659262922957,0.02404035,1703.2,1702.7,15.62235736]
[1659262923258,2.92208707,1703.2,1702.7,15.62235736]
[1659262923488,0.02404035,1703.2,1702.7,15.62235736]
[1659262924017,0.02404035,1703.2,1702.9,0.2]
[1659262925798,0.02404035,1703.2,1702.7,16.08962012]
[1659262926690,0.02404035,1703.2,1702.7,3.77030156]
[1659262929571,0.02404035,1703.2,1702.7,14.55564701]
[1659262929996,0.02404035,1703.2,1702.8,0.2]
[1659262930289,0.02404035,1703.2,1702.7,14.55564701]
[1659262930725,0.02404035,1703.2,1702.7,14.11474701]
[1659262930932,2.92208707,1703.2,1702.7,0.02636276]
[1659262932421,0.02404035,1703.2,1702.9,10.8336102]
[1659262932601,0.02404035,1703.2,1702.9,14.13606748]
[1659262932803,0.02404035,1703.2,1703.0,0.2]
[1659262934966,0.02404035,1703.2,1703.1,0.4]
[1659262939256,0.02404035,1703.2,1702.9,14.13606748]
[1659262940908,0.02404035,1703.2,1703.0,0.2]
[1659262945130,0.02404035,1703.2,1702.9,3.30245728]
[1659262955087,0.02404035,1703.2,1703.1,0.2]
[1659262956501,0.02404035,1703.2,1703.0,0.04968117]
[1659262957820,0.02404035,1703.2,1703.1,0.2]
[1659262958023,0.05,1703.6,1703.1,9.29804672]
[1659262958226,0.05,1703.8,1703.7,0.2]
[1659262958460,7.8511,1704.2,1703.7,0.2]
[1659262958776,11.3011,1704.2,1703.7,0.2]
[1659262959759,7.8011,1704.2,1703.7,0.2]
[1659262960132,8.1011,1704.2,1703.7,0.2]
[1659262960468,10.99914672,1704.2,1703.7,0.2]
[1659262961470,8.1011,1704.2,1703.7,0.2]
[1659262962251,8.1011,1704.2,1704.0,0.19734993]
[1659262962465,0.05,1704.5,1703.8,3.5]
[1659262962681,2.89804672,1704.5,1703.8,3.9406]
[1659262962865,2.89804672,1704.5,1703.9,3.0]
[1659262963049,2.89804672,1704.5,1703.9,3.02394306]
[1659262964242,16.92074672,1704.6,1703.9,3.02394306]
[1659262964643,16.92074672,1704.6,1704.0,0.44536432]
[1659262965289,17.22074672,1704.6,1704.0,0.44536432]
[1659262965602,2.89804672,1704.5,1704.0,0.00476432]
[1659262965986,0.34471435,1704.4,1703.8,0.05]
[1659262966170,2.89804672,1704.3,1703.7,6.0461]
[1659262966553,2.89804672,1704.3,1704.0,0.00476164]
[1659262966787,0.34471435,1704.2,1704.0,0.00476164]
[1659262967998,0.34471435,1704.2,1703.8,0.03699002]
[1659262968600,3.24276107,1704.2,1704.0,0.00476164]
[1659262970087,3.24276107,1704.2,1703.8,0.03699002]
[1659262975516,3.24276107,1704.2,1704.0,0.00476701]
[1659262977095,3.24276107,1704.2,1703.8,0.03699002]
[1659262977525,3.24276107,1704.2,1704.0,0.00636793]
[1659262979094,3.24276107,1704.2,1703.8,0.03699002]
[1659262979539,3.24276107,1704.2,1704.0,0.00596635]
[1659262980535,3.24276107,1704.2,1703.8,0.03699002]
[1659262983537,3.24276107,1704.2,1703.7,2.8026]
[1659262984763,0.00258168,1703.7,1703.5,0.4907]
[1659262984967,0.00258168,1703.7,1703.4,5.87]
[1659262987835,0.00258168,1703.7,1703.4,3.0024]
[1659262988869,0.00258168,1703.7,1703.2,7.07745599]
[1659262989247,0.00258168,1703.7,1703.2,0.17905599]
[1659262989583,0.00258168,1703.7,1703.1,6.0813]
[1659262989785,0.00258168,1703.7,1703.1,12.7060507]
[1659262989940,0.05,1703.9,1703.7,0.00127856]
[1659262990140,9.69626107,1704.1,1703.7,0.00127856]
[1659262990379,13.19626107,1704.1,1703.7,0.00127856]
[1659262992782,3.5,1704.0,1703.7,0.00127856]
[1659262992999,12.85154672,1704.1,1703.7,0.00127856]
[1659262996699,13.19626107,1704.1,1703.7,0.00127856]
[1659262996870,9.69626107,1704.1,1703.7,0.00127856]
[1659262997202,6.71765007,1703.8,1703.7,0.00127856]
[1659262997414,13.56041114,1703.8,1703.7,0.00127856]
[1659262997859,21.37841114,1703.8,1703.7,0.00127856]
[1659262998515,27.56341114,1703.8,1703.7,0.00127856]
[1659262999215,33.63781114,1703.8,1703.7,0.00127856]
[1659263010212,27.45281114,1703.8,1703.7,0.00127856]
[1659263010412,33.63516107,1703.8,1703.7,0.00127856]
[1659263010651,33.63781114,1703.8,1703.7,0.00127856]
[1659263011226,0.00117303,1703.7,1703.3,0.05]
[1659263011451,0.00117303,1703.7,1703.0,3.55]
[1659263011452,2.89804672,1703.6,1703.0,3.55]
[1659263011753,2.89804672,1703.6,1703.4,0.19734993]
[1659263012254,0.00117303,1703.7,1703.4,0.19734993]
[1659263012255,0.00117303,1703.7,1703.4,0.20456125]
[1659263013643,0.00117303,1703.7,1703.6,0.19734993]
[1659263015070,0.00117303,1703.7,1703.6,13.00486153]
[1659263015269,0.00117303,1703.7,1703.6,13.212072]
[1659263015640,0.00117303,1703.7,1703.6,13.012072]
[1659263015949,0.00117303,1703.7,1703.6,13.25542207]
[1659263016464,0.00117303,1703.7,1703.5,3.1975]
[1659263017956,0.00117303,1703.7,1703.3,0.45860996]
[1659263018361,0.00117303,1703.7,1703.3,0.01780996]
[1659263019761,0.00117303,1703.7,1703.3,6.71515989]
[1659263019960,0.00117303,1703.7,1703.6,12.62966487]
[1659263020162,0.00117303,1703.7,1703.6,12.64675439]
[1659263023724,0.00117303,1703.7,1703.6,16.08745439]
[1659263024300,0.00117303,1703.7,1703.6,15.64675439]
[1659263025333,0.00117303,1703.7,1703.6,18.74215104]
[1659263025491,0.00117303,1703.7,1703.6,18.94215104]
[1659263025697,0.00117303,1703.7,1703.6,22.52135104]
[1659263025917,0.05,1704.1,1704.0,0.19734993]
[1659263026100,8.1975,1704.5,1704.4,0.19734993]
[1659263026101,8.2475,1704.5,1704.4,0.19734993]
[1659263026304,11.5,1704.7,1704.4,0.19734993]
[1659263026526,0.00335733,1704.8,1704.4,0.19734993]
[1659263026686,0.00335733,1704.8,1704.5,3.33854672]
[1659263026887,0.00335733,1704.8,1704.7,0.19734993]
[1659263027287,0.4299,1705.0,1704.7,0.19734993]
[1659263027734,0.4299,1705.0,1704.7,3.63774993]
[1659263028100,0.4299,1705.0,1704.7,3.19734993]
[1659263028532,0.4299,1705.0,1704.7,3.0]
[1659263028851,0.4299,1705.0,1704.6,6.8]
[1659263029063,0.4299,1705.0,1704.6,9.69804672]
[1659263029375,0.4299,1705.0,1704.6,5.89804672]
[1659263029527,0.4299,1705.0,1704.6,3.0]
[1659263029891,0.82461434,1705.0,1704.5,6.75697675]
[1659263030176,3.5,1704.9,1704.3,6.4918]
[1659263030372,3.84471435,1704.8,1704.3,6.4418]
[1659263030527,0.00265007,1704.7,1704.2,2.7493]
[1659263030728,3.80265007,1704.7,1704.2,2.7493]
[1659263031140,0.69736441,1704.7,1704.2,2.7493]
[1659263031526,2.89804672,1704.6,1704.2,2.7493]
[1659263031725,2.89804672,1704.6,1703.9,13.1185]
[1659263031726,0.3,1704.6,1703.9,13.1185]
[1659263031926,0.69471434,1704.6,1704.0,2.89804672]
[1659263032227,0.39471434,1704.6,1704.0,2.89804672]
[1659263033144,0.39471434,1704.6,1704.0,0.00481421]
[1659263034942,6.40069679,1704.5,1703.9,0.4406]
[1659263035143,2.89804672,1704.4,1704.0,0.00476164]
[1659263035371,6.39804672,1704.4,1704.0,0.00476164]
[1659263035574,0.00265007,1704.2,1704.0,0.00476164]
[1659263036464,0.00265007,1704.2,1703.8,2.7493]
[1659263037321,0.05,1704.4,1704.1,0.19734993]
[1659263037608,6.036,1704.8,1704.2,12.57323067]
[1659263037609,0.05,1704.7,1704.2,12.57323067]
[1659263037778,6.03949444,1704.8,1704.2,12.57323067]
[1659263037779,6.63949444,1704.8,1704.2,12.57323067]
[1659263038389,3.6015,1704.8,1704.2,12.57323067]
[1659263038961,3.99927426,1704.8,1704.2,12.57323067]
[1659263039163,7.49927426,1704.8,1704.2,12.57323067]
[1659263039397,3.99927426,1704.8,1704.2,12.57323067]
[1659263039804,7.49621434,1704.8,1704.2,12.57323067]
[1659263039978,3.99621434,1704.8,1704.2,12.57323067]
[1659263040174,3.99927426,1704.8,1704.2,12.57323067]
[1659263040415,0.00305992,1704.8,1704.7,6.24623015]
[1659263040584,0.00305992,1704.8,1704.7,6.05100703]
[1659263040909,0.00305992,1704.8,1704.7,12.74835696]
[1659263041095,0.00305992,1704.8,1704.7,9.24835696]
[1659263041268,0.00305992,1704.8,1704.7,6.50212681]
[1659263041469,0.05,1705.2,1704.7,6.50212681]
[1659263041792,8.1031,1705.4,1704.7,3.20373445]
[1659263041793,0.39471434,1705.3,1704.7,3.20373445]
[1659263042216,0.00321104,1705.1,1704.7,6.70373445]
[1659263042765,0.00321104,1705.1,1704.7,3.70373445]
[1659263042966,0.39471434,1705.3,1704.7,0.00638452]
[1659263043218,0.39471434,1705.3,1704.7,3.00638452]
[1659263043542,0.00364609,1705.2,1704.7,3.00638452]
[1659263043898,0.00364609,1705.2,1704.9,0.19734993]
[1659263044242,0.00364609,1705.2,1704.7,6.50638452]
[1659263044406,0.39471434,1705.3,1704.7,6.50638452]
[1659263044607,0.39471434,1705.3,1704.7,3.00638452]
[1659263044836,0.3983604,1705.3,1704.7,3.00238569]
[1659263045825,0.39471434,1705.3,1704.7,3.00238569]
[1659263046150,0.39807842,1705.3,1704.7,3.00238569]
[1659263046707,0.69807842,1705.3,1704.7,0.00238569]
[1659263046942,2.89804672,1705.2,1704.5,0.05]
[1659263047138,0.3,1705.2,1704.5,2.89804672]
[1659263047339,5.94804672,1705.3,1704.5,2.89804672]
[1659263047554,0.00336408,1705.3,1704.9,0.19734993]
[1659263047731,0.00336408,1705.3,1705.0,0.19734993]
[1659263048106,0.02696987,1705.2,1705.0,0.19734993]
[1659263049753,0.02696987,1705.2,1704.8,0.21993945]
[1659263051712,0.02696987,1705.2,1704.8,0.02258952]
[1659263052336,0.02696987,1705.2,1704.7,2.9699]
[1659263052544,0.34471435,1705.1,1704.7,2.9699]
[1659263053261,0.02696987,1705.2,1704.8,0.19734993]
[1659263053462,0.02696987,1705.2,1704.8,0.39734993]
[1659263054438,0.02696987,1705.2,1705.1,3.5]
[1659263054746,0.02696987,1705.2,1705.1,0.19734993]
[1659263054928,0.02696987,1705.2,1705.1,0.04297119]
[1659263057532,0.61596987,1705.2,1705.1,0.04297119]
[1659263057735,0.61596987,1705.2,1704.7,0.05]
[1659263057736,3.57066549,1705.2,1704.7,0.05]
[1659263057947,3.57066549,1705.2,1704.5,0.29314]
[1659263057948,3.84276107,1705.1,1704.5,0.34314]
[1659263058180,3.84276107,1705.1,1704.4,2.784]
[1659263058181,0.00265007,1704.8,1704.4,2.784]
[1659263058344,2.89804672,1705.0,1704.4,2.784]
[1659263058345,0.05399883,1704.9,1704.4,2.784]
[1659263058762,3.2967599,1704.9,1704.2,3.6513]
[1659263058964,3.8967599,1704.9,1704.2,5.9091]
[1659263059167,3.8967599,1704.9,1704.2,2.7483]
[1659263060586,2.89804672,1704.8,1704.2,2.7483]
[1659263060785,0.99871318,1704.9,1704.2,2.7483]
[1659263060786,3.3467599,1704.9,1704.2,2.7483]
[1659263060957,0.05,1705.0,1704.6,0.19734993]
[1659263061156,11.1524,1705.1,1704.6,0.19734993]
[1659263062094,10.8524,1705.1,1704.6,0.37333429]
[1659263062499,0.05399883,1705.0,1704.5,0.00326127]
[1659263065965,0.39871318,1705.0,1704.5,0.00326127]
[1659263067519,0.39871318,1705.0,1704.6,2.89804672]
[1659263067718,0.07696987,1705.2,1704.5,3.34180799]
[1659263067719,0.67696987,1705.2,1704.5,3.34180799]
[1659263067905,0.62696987,1705.2,1704.5,3.34180799]
[1659263068111,0.34471435,1705.1,1704.5,3.34180799]
[1659263068942,0.34471435,1705.1,1704.5,2.90130799]
[1659263069331,0.34471435,1705.1,1704.5,3.09865792]
[1659263069504,0.34471435,1705.1,1704.5,0.2006112]
[1659263069701,0.34471435,1705.1,1704.5,0.00326127]
[1659263072304,0.39871318,1705.1,1704.7,0.19734993]
[1659263072502,0.02696987,1705.2,1704.7,3.09539665]
[1659263072702,0.02696987,1705.2,1704.7,7.03294641]
[1659263072902,0.0809687,1705.2,1704.7,3.53294641]
[1659263073211,0.0809687,1705.2,1704.7,2.89804672]
[1659263073954,0.0809687,1705.2,1704.6,2.7503]
[1659263073955,0.3809687,1705.2,1704.6,2.7503]
[1659263074138,0.6809687,1705.2,1704.6,2.7503]
[1659263076442,1.02568305,1705.2,1704.6,2.7503]
[1659263077157,1.02568305,1705.2,1704.6,2.94479969]
[1659263077453,1.02568305,1705.2,1705.0,0.19449969]
[1659263077660,0.42568305,1705.2,1705.0,0.19449969]
[1659263081616,0.42568305,1705.2,1704.6,10.43519969]
[1659263081918,0.42568305,1705.2,1704.6,3.1907]
[1659263082147,0.42568305,1705.2,1704.6,2.7503]
[1659263082923,3.62372977,1705.2,1704.6,2.7503]
[1659263083140,0.00550031,1705.1,1704.6,2.7503]
[1659263083860,3.52501659,1705.2,1704.6,2.7503]
[1659263086934,3.92372977,1705.2,1704.6,2.7503]
[1659263091768,1.02568305,1705.2,1704.6,2.7503]
[1659263092150,1.02568305,1705.2,1704.8,0.19449969]
[1659263092875,1.02568305,1705.2,1704.6,2.7503]
[1659263093078,1.02568305,1705.2,1704.6,2.94479969]
[1659263093465,1.02568305,1705.2,1704.6,2.7503]
[1659263104955,2.89804672,1705.1,1704.5,9.4203]
[1659263105123,2.89804672,1705.1,1704.5,3.0816]
[1659263108546,2.89804672,1705.1,1704.5,3.11420943]
[1659263110369,1.07568305,1705.2,1704.5,6.01225615]
[1659263110565,1.07568305,1705.2,1704.5,6.45275615]
[1659263110566,1.02568305,1705.2,1704.5,6.45275615]
[1659263111136,1.02568305,1705.2,1704.5,29.55759515]
[1659263112997,1.02568305,1705.2,1704.5,26.65954843]
[1659263113203,1.02568305,1705.2,1704.5,26.21904843]
[1659263113408,3.92923008,1705.2,1704.5,26.21904843]
[1659263113780,3.0,1705.1,1704.5,26.21904843]
[1659263116700,0.00550031,1705.0,1704.5,26.186439]
[1659263116867,6.05323089,1705.0,1704.5,23.104839]
[1659263117067,3.0,1704.9,1704.5,23.10231869]
[1659263117309,3.3,1704.9,1704.5,23.10231869]
[1659263117667,0.3,1704.9,1704.5,23.10231869]
[1659263118009,3.50354703,1705.0,1704.5,23.10231869]
[1659263118310,3.49804672,1705.0,1704.5,23.10231869]
[1659263119267,3.50354703,1705.0,1704.5,23.10231869]
[1659263120273,3.90226021,1705.0,1704.5,23.10231869]
[1659263121624,3.8967599,1705.0,1704.5,23.10231869]
[1659263127493,0.00550031,1704.8,1704.5,23.10231869]
[1659263127696,3.8967599,1705.0,1704.5,23.10231869]
[1659263129593,0.99871318,1705.0,1704.5,23.10231869]
[1659263129805,3.69871318,1705.0,1704.5,23.10231869]
[1659263131187,6.60226021,1705.0,1704.5,23.10231869]
[1659263131398,6.5967599,1705.0,1704.5,23.10231869]
[1659263131587,3.5967599,1705.0,1704.4,0.03106229]
[1659263131790,3.5967599,1705.0,1704.4,0.47156229]
[1659263132029,3.5967599,1705.0,1704.4,0.03106229]
[1659263138443,0.69871318,1705.0,1704.4,2.92910901]
[1659263138654,0.69871318,1705.0,1704.5,0.4405]
[1659263138835,8.507,1705.1,1705.0,19.4987841]
[1659263139036,6.19804672,1705.1,1705.0,19.4987841]
[1659263140259,6.49804672,1705.1,1705.0,19.4987841]
[1659263141551,6.49804672,1705.1,1705.0,7.48283774]
[1659263143065,6.50354703,1705.1,1705.0,7.48283774]
[1659263143845,6.50354703,1705.1,1704.6,0.05]
[1659263143846,0.00550031,1704.8,1704.6,0.05]
[1659263144059,0.00550031,1704.8,1704.2,0.05]
[1659263144060,3.19804672,1704.7,1704.2,0.05]
[1659263144293,3.19804672,1704.7,1704.0,6.51323]
[1659263144294,6.19804672,1704.6,1704.0,0.05]
[1659263144454,14.01064672,1704.6,1703.9,3.0022]
[1659263144659,14.01064672,1704.6,1703.9,6.5022]
[1659263145152,3.20354703,1704.5,1703.9,3.0022]
[1659263145390,3.19804672,1704.4,1703.9,3.0022]
[1659263145562,3.19804672,1704.4,1703.9,2.9522]
[1659263148202,0.00550031,1704.2,1703.7,12.1497]
[1659263148399,0.00550031,1704.2,1703.7,9.2216]
[1659263148967,0.00550031,1704.2,1703.7,8.7809]
[1659263149243,0.00550031,1704.2,1703.7,2.7329]
[1659263149835,2.90354703,1704.2,1703.7,2.7329]
[1659263150017,2.89804672,1704.1,1703.6,0.4407]
[1659263150221,3.49804672,1704.1,1703.5,10.0097]
[1659263150440,3.49804672,1704.1,1703.5,9.569]
[1659263150812,3.49804672,1704.1,1703.5,3.61481435]
[1659263151007,0.00550031,1703.9,1703.5,3.61481435]
[1659263151939,0.00550031,1703.7,1703.5,3.61481435]
[1659263153268,0.00550031,1703.7,1703.1,3.4908]
[1659263153269,6.39804672,1703.6,1703.1,3.4908]
[1659263153567,6.39804672,1703.6,1702.8,3.5]
[1659263153568,6.69804672,1703.6,1703.0,0.4408]
[1659263153767,6.69804672,1703.6,1703.0,0.78551435]
[1659263153969,6.99804672,1703.6,1703.0,0.78551435]
[1659263154815,3.49804672,1703.6,1703.0,0.42716132]
[1659263154982,6.55550031,1703.7,1703.0,0.42716132]
[1659263154983,3.65,1703.7,1703.0,0.42716132]
[1659263155181,0.6,1703.7,1703.0,3.5011924]
[1659263155388,6.99804672,1703.7,1703.0,0.42716132]
[1659263155600,7.00354703,1703.7,1703.0,0.42716132]
[1659263157794,3.49804672,1703.7,1703.0,0.37716132]
[1659263158134,6.99804672,1703.7,1703.0,0.37716132]
[1659263158800,6.99804672,1703.7,1703.0,0.81796132]
[1659263160395,3.49804672,1703.7,1703.0,0.37716132]
[1659263160632,6.99804672,1703.7,1703.0,0.37716132]
[1659263161735,3.5,1703.6,1703.0,0.37716132]
[1659263161891,3.49804672,1703.7,1703.0,0.37716132]
[1659263161892,7.04804672,1703.7,1703.0,0.37716132]
[1659263162093,3.5,1703.6,1703.0,0.37716132]
[1659263162294,7.09804671,1703.7,1703.0,0.37716132]
[1659263162514,3.5,1703.6,1703.0,0.37716132]
[1659263162713,4.19999999,1703.7,1703.0,3.27520804]
[1659263162894,0.34999999,1703.7,1703.0,3.27520804]
[1659263163745,0.34999999,1703.7,1703.0,3.22520804]
[1659263165616,3.84999999,1703.7,1703.0,3.22520804]
[1659263166011,0.34999999,1703.7,1703.0,3.22520804]
[1659263166212,0.34999999,1703.7,1703.0,6.72520804]
[1659263166455,0.34999999,1703.7,1703.1,0.19449969]
[1659263166819,0.34999999,1703.7,1703.0,2.89804672]
[1659263167212,0.34999999,1703.7,1703.1,0.24471435]
[1659263168917,0.34999999,1703.7,1703.1,1.94471435]
[1659263170132,0.34999999,1703.7,1703.2,0.08243729]
[1659263170335,0.34999999,1703.7,1703.3,0.24471435]
[1659263172453,0.04999999,1703.7,1703.3,0.24471435]
[1659263181609,0.05543558,1703.6,1703.3,0.24471435]
[1659263186668,0.0514626,1703.6,1703.3,0.24471435]
[1659263198489,2.94950932,1703.6,1703.3,0.24471435]
[1659263198696,0.05000001,1703.5,1703.1,1.7]
[1659263199081,0.05000001,1703.5,1703.1,1.94471435]
[1659263199472,0.0514626,1703.6,1703.1,2.13921404]
[1659263200118,0.0514626,1703.6,1703.1,1.94471435]
[1659263205223,0.0514626,1703.6,1703.1,1.96819115]
[1659263207724,0.3514626,1703.6,1703.1,1.96819115]
[1659263208216,0.0514626,1703.6,1703.1,1.96819115]
[1659263208623,0.04935444,1703.6,1703.1,1.96819115]
[1659263209540,3.54935444,1703.6,1703.1,1.96819115]
[1659263209851,0.04935444,1703.6,1703.1,1.96819115]
[1659263210346,3.54935444,1703.6,1703.1,1.96819115]
[1659263210507,0.04935444,1703.6,1703.1,1.96819115]
[1659263212255,0.04935444,1703.6,1703.1,1.7]
[1659263212256,3.25354702,1703.5,1703.1,1.7]
[1659263212428,2.89804672,1703.4,1703.1,1.7]
[1659263212626,0.00550031,1703.3,1703.1,1.7]
[1659263212831,2.90354703,1703.3,1703.1,1.7]
[1659263215225,3.55354702,1703.3,1703.1,1.7]
[1659263216170,3.55354702,1703.3,1703.2,0.09095034]
[1659263217889,3.49804672,1703.3,1703.2,0.09095034]
[1659263218197,3.56198496,1703.2,1703.1,1.7]
[1659263222090,0.06198496,1703.2,1703.1,1.7]
[1659263232903,7.02309361,1703.5,1703.1,1.7]
[1659263233076,10.52114033,1703.5,1703.1,1.7]
[1659263235375,10.52114033,1703.5,1703.1,1.73052647]
[1659263235574,2.89804672,1703.4,1703.1,1.73052647]
[1659263235773,3.3,1703.3,1703.1,1.73052647]
[1659263236008,6.19804672,1703.3,1703.1,1.73052647]
[1659263237315,6.19804672,1703.3,1703.1,1.7]
[1659263237813,3.19804672,1703.3,1703.1,1.7]
[1659263241807,2.89804672,1703.3,1703.1,1.7]
[1659263245533,12.5,1703.2,1702.7,0.05]
[1659263245743,12.5,1703.2,1702.0,7.65254]
[1659263245744,9.39804672,1703.1,1702.5,0.05]
[1659263245919,6.39804672,1703.0,1702.3,0.05]
[1659263246141,6.39804672,1702.9,1702.2,12.8826]
[1659263246342,6.39804672,1702.8,1702.2,12.8326]
[1659263246505,2.89804672,1702.7,1702.2,6.5996]
[1659263246920,0.35,1702.9,1702.3,0.2]
[1659263247157,0.05,1703.0,1702.4,0.441]
[1659263247460,0.6,1703.1,1702.4,13.67034672]
[1659263247667,0.6,1703.1,1702.5,0.02837524]
[1659263247867,0.05,1703.2,1702.5,0.02837524]
[1659263247868,3.85,1703.2,1702.5,0.02837524]
[1659263248042,3.19804672,1703.2,1702.5,0.02837524]
[1659263248436,3.19804672,1703.2,1702.6,0.27162073]
[1659263249217,3.19804672,1703.2,1702.7,0.03743326]
[1659263249530,8.1479,1703.4,1702.8,3.81056745]
[1659263249735,8.1479,1703.4,1703.1,0.2]
[1659263249736,8.0979,1703.4,1703.1,0.2]
[1659263249929,8.0979,1703.4,1703.0,0.4408]
[1659263250263,8.0979,1703.4,1702.9,0.71252073]
[1659263251240,8.3979,1703.4,1702.9,0.71252073]
[1659263251866,8.3979,1703.4,1702.9,0.27162073]
[1659263253741,8.3979,1703.4,1703.0,0.00766162]
[1659263254285,0.3,1703.4,1703.0,0.00766162]
[1659263254498,7.35109362,1703.6,1703.0,0.00766162]
[1659263254681,10.24914034,1703.6,1703.0,0.00766162]
[1659263255805,10.24914034,1703.6,1703.1,0.27162073]
[1659263256760,6.74914034,1703.6,1703.1,0.27162073]
[1659263257092,10.24914034,1703.6,1703.1,0.27162073]
[1659263258454,6.74914034,1703.6,1703.1,0.27162073]
[1659263258651,10.24914034,1703.6,1703.1,0.27162073]
[1659263262063,6.74914034,1703.6,1703.1,0.27162073]
[1659263262860,2.89804672,1703.5,1703.1,0.27162073]
[1659263263278,0.05,1703.7,1703.4,0.2]
[1659263263481,9.73588655,1704.0,1703.6,0.2]
[1659263263786,9.68588655,1704.0,1703.6,0.2]
[1659263264369,9.68588655,1704.0,1703.5,0.27162073]
[1659263264960,9.98588655,1704.0,1703.5,0.27162073]
[1659263265149,10.28588655,1704.0,1703.5,0.27162073]
[1659263265969,10.28588655,1704.0,1703.5,0.47162073]
[1659263265970,9.8164,1704.0,1703.5,0.47162073]
[1659263266680,9.8164,1704.0,1703.5,0.27162073]
[1659263266881,9.88949362,1704.0,1703.5,0.27162073]
[1659263270077,9.88949362,1704.0,1703.5,0.26899249]
[1659263271856,9.88949362,1704.0,1703.6,0.0244916]
[1659263273069,1.67309362,1704.0,1703.6,0.0244916]
[1659263273270,4.67309362,1704.0,1703.7,0.2]
[1659263273526,1.67309362,1704.0,1703.7,0.2]
[1659263275095,4.67309362,1704.0,1703.7,0.2]
[1659263275410,4.67309362,1704.0,1703.6,0.0244916]
[1659263277498,4.67309362,1704.0,1703.6,2.92253832]
[1659263277727,0.35,1704.2,1703.7,0.26899249]
[1659263278036,6.39804672,1704.2,1703.7,3.56909249]
[1659263278417,6.39804672,1704.2,1703.7,3.3001]
[1659263278821,0.00262824,1704.1,1703.7,3.3001]
[1659263279340,3.60262824,1704.1,1703.7,3.3001]
[1659263279558,6.50067496,1704.1,1703.6,0.0244916]
[1659263279702,2.89804672,1704.0,1703.6,0.0244916]
[1659263279901,3.19804672,1704.0,1703.6,0.0244916]
[1659263280103,3.19804672,1703.9,1703.6,0.0244916]
[1659263280475,3.49804672,1703.9,1703.6,0.0244916]
[1659263281200,6.74304672,1703.9,1703.6,0.0244916]
[1659263282599,6.74304672,1703.9,1703.3,0.05]
[1659263282800,6.74304672,1703.9,1703.3,0.26899249]
[1659263283036,10.24304672,1703.9,1703.3,0.26899249]
[1659263283210,6.74304672,1703.9,1703.3,0.26899249]
[1659263283400,6.74304672,1703.9,1703.3,0.30511264]
[1659263283803,10.24304672,1703.9,1703.3,0.30511264]